[Event "ESCC-50 2022"]
[Site "Lublin"]
[Date "2022.07.05"]
[Round "1.1"]
[White "Baliuniene, Margarita"]
[Black "Mrva, Martin"]
[Result "0-1"]
[ECO "A48"]
[WhiteElo "1935"]
[BlackElo "2385"]
[Annotator "TA"]
[PlyCount "108"]
[EventDate "2022.07.05"]
[EventType "swiss"]
[EventCountry "POL"]
[SourceTitle "playchess.com"]
[Source "ChessBase"]
[SourceQuality "1"]
[TimeControl "40/5400+30:1800+30"]

{[%evp 11,107,12,28,18,22,-2,18,29,40,0,13,17,4,-33,-35,-32,-29,-35,-32,-31,0,-38,21,22,23,-24,5,0,20,0,0,0,44,0,0,0,0,0,2,0,0,0,27,0,0,0,15,0,9,10,41,46,77,0,29,0,0,0,27,27,27,27,27,42,82,0,0,0,0,0,0,0,0,-214,-203,-297,-297,-297,-290,-283,-238,-223,-223,-586,-579,-566,-543,-1115,-1012,-29975,-29970,-29991,-29992,-29992,-29993,-29993,-29994,-29999]} 1. d4 {[%emt 0:00:05]} Nf6 {[%emt 0:00:06]} 2. Nf3 {[%emt 0:00:15]} g6 {[%emt 0:00:12]} 3. c4 {[%emt 0:00:15]} Bg7 {[%emt 0:00:07]} 4. Nc3 {[%emt 0:00:11]} O-O {[%emt 0:00:42]} 5. g3 {[%emt 0:00:53]} c5 {[%emt 0:00:40]} 6. Bg2 {[%emt 0:00:37]} Nc6 {[%emt 0:02:50]} 7. d5 {[%emt 0:03:03] E60: King's Indian: Unusual lines and Fianchetto Variation without Nc3.} Na5 {[%emt 0:00:10]} 8. Nd2 {[%emt 0:01:08] [#]} Rb8 $146 {[%emt 0:05:05]} ({Predecessor:} 8... d6 9. O-O e6 10. Rb1 exd5 11. cxd5 Bd7 12. b4 cxb4 13. Rxb4 Rc8 14. Nde4 Ne8 15. Nb5 Bxb5 16. Rxb5 a6 17. Rb1 Qd7 18. Bb2 Bxb2 19. Rxb2 {½-½ (40) Harutyunian,T (2538)-Muradli,M (2427) Moscow 2020}) 9. O-O {[%emt 0:01:23] The position is equal.} Ng4 {[%emt 0:09:23]} 10. Nb5 {[%emt 0:08:35]} d6 {[%emt 0:20:05]} 11. Nxa7 {[%emt 0:08:17]} Bd7 {[%emt 0:00:07]} 12. a4 {[%emt 0:00:50]} Ra8 {[%emt 0:01:58]} 13. Nb5 {[%emt 0:03:04] [#] And now Rb1 would win.} Nxc4 $1 {[%emt 0:00:15][%mdl 64] Remove Defender} 14. Nxc4 {[%emt 0:03:09]} Bxb5 {[%emt 0:00:06][%mdl 64] Pin} 15. Qb3 {[%emt 0:01:47]} Qe8 {[%emt 0:01:36][%cal Rb5a4]} 16. a5 {[%emt 0:02:42]} (16. Nb6 $5 {[%cal Rb6a8]} Ra6 17. Ra3 $17) 16... Ne5 {[%emt 0:03:12]} ({Better is} 16... Bxc4 $15 17. Qxc4 Qd7) 17. Nxe5 {[%emt 0:03:42]} (17. Nb6 {with more complications.} Bxe2 18. Re1 Ba6 19. Nxa8 Qxa8 20. Qc2) 17... Bxe5 {[%emt 0:00:06]} 18. Re1 {[%emt 0:00:45]} (18. Bh6 $142) 18... Bg7 {[%emt 0:05:00]} (18... b6 $5) 19. Bd2 {[%emt 0:04:19]} Ba6 {[%emt 0:03:07]} 20. Bc3 {[%emt 0:02:31]} Qb5 {[%emt 0:00:12]} 21. Qc2 {[%emt 0:04:58]} Rfc8 {[%emt 0:00:48]} 22. Bxg7 {[%emt 0:01:48]} Kxg7 {[%emt 0:00:05]} 23. Qc3+ {[%emt 0:00:29]} Kg8 {[%emt 0:00:05]} 24. e4 {[%emt 0:00:46]} Qd3 {[%emt 0:02:27]} 25. Re3 {[%emt 0:08:38][%cal Be1e3,Be3c3,Bc3c2][%mdl 32]} Qxc3 {[%emt 0:00:46]} 26. Rxc3 {[%emt 0:00:07]} Be2 {[%emt 0:02:37]} 27. Bf1 {[%emt 0:01:06]} Bxf1 {[%emt 0:01:46]} 28. Kxf1 $11 {[%emt 0:00:05][%mdl 4096] Endgame KRR-KRR} b5 {[%emt 0:00:18]} 29. b3 {[%emt 0:07:42]} b4 {[%emt 0:01:50]} 30. Rc2 {[%emt 0:00:18]} Ra6 {[%emt 0:00:09]} 31. Ke2 {[%emt 0:00:34]} f5 {[%emt 0:10:06]} 32. f3 {[%emt 0:04:25]} (32. e5 $16) 32... Kf7 {[%emt 0:05:59]} 33. Kd3 {[%emt 0:01:25][%cal Oe4e5]} Rca8 {[%emt 0:01:38]} 34. Rca2 {[%emt 0:01:30]} Kf6 {[%emt 0:00:19]} 35. exf5 {[%emt 0:04:14]} gxf5 {[%emt 0:04:37]} 36. Kc4 {[%emt 0:00:53]} R6a7 {[%emt 0:00:13]} 37. a6 {[%emt 0:06:18]} Rb8 {[%emt 0:00:12]} 38. f4 {[%emt 0:02:12]} (38. h4 $16) 38... Rb6 {[%emt 0:00:46]} 39. h3 {[%emt 0:08:27]} h5 {[%emt 0:01:00] Against g4} 40. h4 {[%emt 0:00:00]} Kf7 {[%emt 0:00:00]} 41. Ra5 {[%emt 0:02:57]} Ke8 {[%emt 0:00:41]} 42. Rb5 $2 {[%emt 0:04:30]} (42. Kd3 $11) 42... Rbxa6 {[%emt 0:00:18]} 43. Rxa6 {[%emt 0:00:06]} (43. Rb8+ $142 Kd7 44. Rb7+ Rxb7 45. Rxa6) 43... Rxa6 $19 {[%emt 0:00:06] KR-KR} 44. Rb8+ {[%emt 0:00:04] [#]} Kd7 $1 {[%emt 0:02:41]} 45. Rh8 {[%emt 0:06:43]} Ra2 {[%emt 0:00:11] ...Rg2 is the strong threat.} 46. Rxh5 {[%emt 0:00:22]} Rc2+ {[%emt 0:07:21]} 47. Kd3 $2 {[%emt 0:05:33]} (47. Kb5 Rc3 48. Ka4) 47... Rc3+ {[%emt 0:00:08]} 48. Kd2 {[%emt 0:00:04]} Rxb3 {[%emt 0:00:13] Strongly threatening ...c4.} 49. Rg5 {[%emt 0:00:24]} c4 {[%emt 0:00:08][%cal Bc5c4,Bc4c3][%mdl 32] ( -> ...c3+)} 50. Kc2 {[%emt 0:00:14]} Rf3 {[%emt 0:00:15] Black mates.} 51. h5 {[%emt 0:00:12]} Rf2+ {[%emt 0:00:06]} 52. Kc1 {[%emt 0:00:12]} c3 {[%emt 0:00:11]} 53. Rg8 {[%emt 0:00:27]} b3 {[%emt 0:00:06][%cal Rf2f1]} 54. Rb8 {[%emt 0:00:09]} Rf1# {[%emt 0:00:07] Weighted Error Value: White=0.56/Black=0.11 (very precise)} 0-1

[Event "ESCC-50 2022"]
[Site "Lublin"]
[Date "2022.07.05"]
[Round "1.2"]
[White "Druckenthaner, Andreas"]
[Black "Wielosz, Jaroslaw"]
[Result "1-0"]
[ECO "C49"]
[WhiteElo "2272"]
[BlackElo "1891"]
[Annotator "TA"]
[PlyCount "81"]
[EventDate "2022.07.05"]
[EventType "swiss"]
[EventCountry "POL"]
[SourceTitle "playchess.com"]
[Source "ChessBase"]
[SourceQuality "1"]
[TimeControl "40/5400+30:1800+30"]

{[%evp 17,81,9,15,12,17,16,37,29,37,29,32,1,4,3,64,57,66,66,106,31,31,19,19,19,24,0,43,0,68,45,65,27,29,9,16,-21,-27,-64,-67,-106,0,-3,-6,-10,8,8,8,8,0,0,0,0,663,651,1089,970,2316,2212,1672,844,29986,29987,29987,29988,29994,29995]} 1. e4 {[%emt 0:00:05]} e5 {[%emt 0:00:12]} 2. Nf3 {[%emt 0:00:14]} Nc6 {[%emt 0:00:11]} 3. Nc3 {[%emt 0:00:10]} Nf6 {[%emt 0:00:12]} 4. Bb5 {[%emt 0:00:14]} Bb4 {[%emt 0:00:44]} 5. O-O {[%emt 0:00:11]} O-O {[%emt 0:00:34]} 6. d3 {[%emt 0:00:08]} d6 {[%emt 0:00:21]} 7. Bg5 {[%emt 0:00:09]} Bxc3 {[%emt 0:00:29]} 8. bxc3 {[%emt 0:00:08]} Qe7 {[%emt 0:00:45]} 9. Nd2 {[%emt 0:04:45]} h6 {[%emt 0:05:33]} 10. Bh4 {[%emt 0:02:36] C49: Four Knights: 4 Bb5 Bb4.} g5 {[%emt 0:02:06]} 11. Bg3 {[%emt 0:00:06]} Bg4 {[%emt 0:06:39]} 12. f3 {[%emt 0:00:25] White is slightly better.} Bd7 {[%emt 0:00:37]} 13. Re1 {[%emt 0:05:27] [#]} a6 $146 {[%emt 0:13:09]} ({Predecessor:} 13... Nh5 14. Bf2 Nd8 15. Rb1 c6 16. Bc4 b5 17. Bb3 Nf4 18. d4 c5 19. Bd5 Nxd5 20. exd5 {1-0 (43) Meier,V (2300)-Held,P (2255) Berlin 1994}) 14. Bxc6 {[%emt 0:04:22]} Bxc6 {[%emt 0:01:27]} 15. Nc4 {[%emt 0:03:31]} Bb5 {[%emt 0:10:43]} (15... Nh5 $11) 16. Ne3 $14 {[%emt 0:03:59]} Bd7 {[%emt 0:00:10]} 17. d4 {[%emt 0:02:44]} Nh5 {[%emt 0:09:29]} 18. Bf2 {[%emt 0:09:24]} (18. Nd5 $16 Qd8 19. dxe5 Nxg3 20. exd6 (20. hxg3 dxe5 21. Qb1 Rb8 $11) (20. Nf6+ Kg7 $14) 20... cxd6 21. hxg3) 18... Nf4 {[%emt 0:04:11]} 19. Qd2 {[%emt 0:07:44]} Be6 {[%emt 0:03:28]} 20. c4 {[%emt 0:08:22]} f6 {[%emt 0:06:19]} 21. Rab1 {[%emt 0:05:18]} Rfb8 {[%emt 0:06:16]} 22. Kh1 {[%emt 0:08:56]} (22. Nd5 $5 {[%cal Rd5e7]} Qg7 23. Kh1 $14) 22... Kf7 {[%emt 0:06:03]} ({Better is} 22... b6 $11) 23. Nd5 {[%emt 0:02:18]} Bxd5 {[%emt 0:01:31]} 24. exd5 {[%emt 0:00:37]} b5 {[%emt 0:02:11]} 25. c5 {[%emt 0:03:49]} Rd8 {[%emt 0:04:04][%cal Bb8d8,Bd8c8,Bc8c7][%mdl 32]} 26. c4 {[%emt 0:00:34]} (26. a4 $5 {[%cal Ra4b5]}) 26... bxc4 {[%emt 0:01:11]} 27. dxe5 {[%emt 0:15:38]} dxe5 {[%emt 0:01:55]} 28. Qc2 {[%emt 0:05:42]} Kg7 {[%emt 0:00:55]} (28... Rxd5 $17 {...Nd3 is the strong threat.} 29. Be3 c3 30. Qh7+ Ke6) 29. d6 $1 $11 {[%emt 0:01:42]} cxd6 {[%emt 0:01:12]} 30. c6 $1 {[%emt 0:00:09]} Rdc8 {[%emt 0:04:12]} (30... Nd3 $2 31. Rb7 Qxb7 32. cxb7 $18) 31. Rb7 {[%emt 0:01:44]} Rc7 {[%emt 0:00:05]} 32. Reb1 {[%emt 0:00:07] [#] And now Rxc7 would win.} ({Much weaker is} 32. Rxc7 Qxc7 33. Qxc4 d5 $17) 32... Rac8 {[%emt 0:01:49] Hoping for ...d5.} 33. Qxc4 {[%emt 0:00:30]} d5 {[%emt 0:05:21]} 34. Qxa6 {[%emt 0:00:28] Strongly threatening Bb6.} Kg6 $2 {[%emt 0:01:18][%mdl 8192]} (34... d4 $11) 35. Bb6 $18 {[%emt 0:01:58]} d4 {[%emt 0:01:56]} 36. Bxc7 {[%emt 0:00:34]} Rxc7 {[%emt 0:00:34]} 37. Rxc7 {[%emt 0:00:39]} Qxc7 {[%emt 0:00:07]} 38. Qb7 {[%emt 0:01:48]} Qa5 {[%emt 0:00:44]} 39. c7 {[%emt 0:00:47] White mates.} Qxa2 {[%emt 0:00:43]} 40. Rg1 {[%emt 0:00:00]} Qf2 {[%emt 0:00:00]} 41. c8=Q {[%emt 0:02:43] Weighted Error Value: White=0.16 (very precise) /Black=0.72} 1-0

[Event "ESCC-50 2022"]
[Site "Lublin"]
[Date "2022.07.05"]
[Round "1.3"]
[White "Krzyzanowski, Wojciech"]
[Black "Tereladze, Sopiko"]
[Result "0-1"]
[ECO "C55"]
[WhiteElo "1878"]
[BlackElo "2141"]
[Annotator "TA"]
[PlyCount "58"]
[EventDate "2022.07.05"]
[EventType "swiss"]
[EventCountry "POL"]
[SourceTitle "playchess.com"]
[Source "ChessBase"]
[SourceQuality "1"]
[TimeControl "40/5400+30:1800+30"]

{[%evp 17,58,-21,-31,-65,-69,-272,-266,-416,-413,-562,-251,-267,-74,-120,-116,-90,-100,-104,-119,-119,-122,-139,-129,-121,-102,-97,-97,-100,-100,-155,-141,-239,-235,-465,-464,-442,-441,-415,-415,-420,-414,-5214,-577]} 1. e4 {[%emt 0:00:02]} e5 {[%emt 0:00:07]} 2. Nf3 {[%emt 0:00:09]} Nc6 {[%emt 0:00:04]} 3. d4 {[%emt 0:00:07]} exd4 {[%emt 0:00:09]} 4. Bc4 {[%emt 0:00:09]} Nf6 {[%emt 0:00:10]} 5. e5 {[%emt 0:00:08]} d5 {[%emt 0:00:03]} 6. Bb5 {[%emt 0:00:10]} Ne4 {[%emt 0:00:02]} 7. Nxd4 {[%emt 0:00:22]} Bc5 {[%emt 0:00:16]} 8. O-O {[%emt 0:01:46]} O-O {[%emt 0:01:51]} 9. Bxc6 {[%emt 0:11:15]} bxc6 {[%emt 0:00:43]} 10. f3 {[%emt 0:02:16] C56: Two Knights: 4 d4 exd4 5 0-0 Nxe4.} f6 {[%emt 0:02:03]} 11. exf6 {[%emt 0:08:06]} (11. fxe4 $15 fxe5 12. Rxf8+ Qxf8 13. c3) 11... Qxf6 $19 {[%emt 0:01:10]} 12. c3 {[%emt 0:02:54]} (12. Be3 $142 Ba6 13. Re1) 12... Ba6 {[%emt 0:00:43]} 13. Re1 {[%emt 0:02:50] [#]} Rae8 {[%emt 0:01:47]} (13... Qh4 $142 $1 {[%cal Oc5d6] ...Bd6! is the strong threat.} 14. Rxe4 (14. Rf1 Bd6) 14... dxe4) 14. Be3 {[%emt 0:03:34] [#]} Nd6 $2 (14... Bd6 $1 $19 {[%cal Of6h4] Hoping for ...Qh4!} 15. Nd2 Nc5) 15. Nd2 {[%emt 0:04:06] [#]} ({White should try} 15. Na3) 15... Rxe3 $1 $17 {[%emt 0:01:29][%mdl 512]} 16. Rxe3 {[%emt 0:00:08] [#]} Nf5 $1 {[%emt 0:00:06]} ({Reject} 16... Bxd4 $6 17. cxd4 Qxd4 18. Nf1 Qxb2 19. Rb1 Qxa2 20. Re7 $11) 17. Re1 {[%emt 0:03:48] Threatens to win with N2b3.} Nxd4 {[%emt 0:00:03]} 18. cxd4 {[%emt 0:00:12]} Bxd4+ {[%emt 0:00:12]} 19. Kh1 {[%emt 0:00:17]} Bxb2 {[%emt 0:00:45] A strong pair of Bishops.} 20. Rb1 {[%emt 0:00:57][%cal Od2e4]} Bd3 $36 {[%emt 0:00:16][%mdl 2048] [#] Inhibits Ne4. Black is in control.} 21. Ne4 $146 {[%emt 0:09:19]} ({Predecessor:} 21. Rxb2 Qxb2 22. Nb3 Bg6 23. Re2 Qb1 24. Nc1 Re8 25. Rxe8+ Bxe8 26. h4 Qb4 27. g3 {0-1 (65) Hoermann,D (1907)-Steiner,W (1978) Berlin 2013}) 21... dxe4 {[%emt 0:08:30] 0x0.0002dd6eea3bdp-1022s more active pieces.} 22. Qb3+ {[%emt 0:00:35]} Kh8 {[%emt 0:00:03]} 23. Rxb2 {[%emt 0:00:38]} ({White should play} 23. Qxb2 Bxb1 24. Qxf6 gxf6 25. Rxb1) 23... exf3 {[%emt 0:00:43] ( -> ...f2)} 24. gxf3 {[%emt 0:08:35]} (24. Qxd3 $17 f2 25. Rbb1 fxe1=N 26. Rxe1) 24... Qxf3+ $19 {[%emt 0:00:23]} 25. Kg1 $2 {[%emt 0:00:56]} (25. Rg2 Qf1+ 26. Rg1 (26. Rxf1 $2 {gets mated.} Rxf1+ 27. Rg1 Be4+)) 25... Qg4+ {[%emt 0:01:46]} 26. Rg2 {[%emt 0:00:23]} Qd4+ {[%emt 0:00:11]} 27. Kh1 {[%emt 0:00:27][%cal Ob3f7]} Be4 {[%emt 0:00:46]} 28. Qg3 {[%emt 0:04:10]} Rf2 {[%emt 0:00:55]} 29. Rxe4 {[%emt 0:01:33]} (29. Qg4 $142 Bxg2+ 30. Qxg2) 29... Rf1+ {[%emt 0:00:08] Weighted Error Value: White=1.13/Black=0.38} 0-1

[Event "ESCC-50 2022"]
[Site "Lublin"]
[Date "2022.07.05"]
[Round "1.4"]
[White "Lilja, Richard"]
[Black "Leszner, Liliana"]
[Result "0-1"]
[ECO "B06"]
[WhiteElo "2131"]
[BlackElo "1872"]
[Annotator "TA"]
[PlyCount "68"]
[EventDate "2022.07.05"]
[EventType "swiss"]
[EventCountry "POL"]
[SourceTitle "playchess.com"]
[Source "ChessBase"]
[SourceQuality "1"]
[TimeControl "40/5400+30:1800+30"]

{[%evp 11,68,22,46,21,36,8,12,3,0,-189,-200,-308,-308,-304,-310,-311,-319,-288,-193,-272,-287,-333,-280,-364,-278,-338,-275,-488,-497,-766,-780,-893,0,-590,0,-874,-862,-1003,-981,-1059,-1052,-1006,-1016,-1042,-827,-827,-816,-1437,-1387,-29986,-5737,-29992,-29989,-29990,-958,-29971,-2333,-5706,-995]} 1. e4 {[%emt 0:00:04]} d6 {[%emt 0:00:06]} 2. d4 {[%emt 0:00:27]} g6 {[%emt 0:00:17]} 3. Nc3 {[%emt 0:01:12]} Bg7 {[%emt 0:00:37]} 4. h4 {[%emt 0:00:12]} Nf6 {[%emt 0:00:57]} 5. Be2 {[%emt 0:00:15]} h5 {[%emt 0:00:34]} 6. Nf3 {[%emt 0:00:52]} c6 {[%emt 0:00:58]} 7. Bg5 {[%emt 0:05:08] B07: Pirc Defence: Miscellaneous Systems.} Bg4 {[%emt 0:02:42] [#]} 8. Qd2 $146 {[%emt 0:02:07]} ({Predecessor:} 8. Nd2 Bxe2 9. Qxe2 b5 10. e5 dxe5 11. dxe5 Ng4 12. O-O-O Qc7 13. Rhe1 e6 14. Nde4 O-O {1-0 (22) Kriechel,B (1865)-Navarro Torres,P (2037) IECG email 2007}) 8... Nbd7 {[%emt 0:01:51]} 9. O-O-O {[%emt 0:00:47] The position is equal.} b5 {[%emt 0:01:43][%cal Bb7b5,Bb5b4,Bb4c3,Bc3b2][%mdl 32] Threatens to win with ...b4.} 10. d5 $2 {[%emt 0:04:15]} (10. e5 $11 b4 11. exf6 bxc3 12. Qxc3 Bxf6 13. Qxc6) 10... b4 $1 $19 {[%emt 0:02:29]} 11. dxc6 {[%emt 0:01:09]} (11. Na4 $142 Nxe4 12. Qe3 Nxg5 13. Nxg5) 11... bxc3 {[%emt 0:02:11]} 12. cxd7+ {[%emt 0:00:26]} Nxd7 {[%emt 0:00:34]} 13. Qe3 {[%emt 0:04:22]} cxb2+ {[%emt 0:02:41]} 14. Kb1 {[%emt 0:00:05]} Qa5 $40 {[%emt 0:10:56][%mdl 128] White is in trouble.} 15. Rd5 {[%emt 0:08:21] [#]} (15. Nd4 {keeps fighting.}) 15... Qc7 $1 {[%emt 0:02:45]} ({Don't blunder} 15... Nc5 $2 16. e5 Be6 17. Bc4 Bxd5 18. Bxd5 $19) 16. e5 {[%emt 0:06:12] Hoping for exd6.} dxe5 {[%emt 0:06:10]} 17. Nxe5 {[%emt 0:16:04]} Nxe5 {[%emt 0:05:02] Dancing on a razor blade.} 18. Rc5 {[%emt 0:02:09]} Qb6 {[%emt 0:06:23]} 19. Bb5+ {[%emt 0:15:41]} (19. Rxe5 Bxe5 20. Qxe5) 19... Kf8 {[%emt 0:00:15]} 20. Bxe7+ {[%emt 0:14:44]} (20. Ba4 $142 Nd7 21. Rc6 Qxe3 22. Bxe3) 20... Kxe7 {[%emt 0:00:44]} 21. Qa3 {[%emt 0:01:03]} Kf6 $2 {[%emt 0:04:19]} ({Better is} 21... Qd6 $19 22. Re1 Rhd8) 22. Qe3 $4 {[%emt 0:02:23][%mdl 8192]} (22. Rxe5 $11 Be6 23. Qc3) 22... Ke7 {[%emt 0:01:42]} 23. Qa3 $1 {[%emt 0:00:56] White wants to mate with Rxe5+.} Qd6 {[%emt 0:05:03] And now ...Rhc8 would win.} 24. Re1 {[%emt 0:04:35]} Rhd8 {[%emt 0:02:25] Strongly threatening ...Kf8.} 25. Rcxe5+ {[%emt 0:05:47]} Bxe5 {[%emt 0:01:27]} 26. Rxe5+ {[%emt 0:00:24]} Kf6 {[%emt 0:00:56]} 27. Rc5 {[%emt 0:01:49]} Qd1+ {[%emt 0:02:29]} 28. Kxb2 {[%emt 0:00:07]} Qd4+ {[%emt 0:00:06]} 29. Kb1 {[%emt 0:01:50]} Rab8 {[%emt 0:01:48]} 30. Qa6+ {[%emt 0:01:20]} Rb6 {[%emt 0:00:50]} (30... Kg7 $142 31. Qa3 Rdc8 32. Rg5 {[#]} Rxc2 $3 {[%mdl 512]} 33. Kxc2 Rc8+ 34. Rc5 Rxc5+ 35. Qxc5 Qxc5+ 36. Kd2 Qxb5 37. Kc3 Bf5 38. g4 Qd3+ 39. Kb4 Be6 40. gxh5 Qd4+ 41. Ka5 gxh5 42. f3 Bd7 43. Ka6 Qb6#) 31. Rc6+ {[%emt 0:00:34]} Be6 {[%emt 0:00:29]} 32. Rxb6 {[%emt 0:00:26]} Qxb6 {[%emt 0:00:46]} (32... Qb4+ $142 33. Kc1 Qf4+ 34. Kb2 Qe5+ 35. Ka3 Qc3+ 36. Ka4 Rd4+ 37. Bc4 axb6 38. Kb5 Qxc4+ 39. Kxb6 Rd6+ 40. Kb7 Rxa6 41. g3 Qc8#) 33. Qa4 {[%emt 0:00:19]} Rd1+ {[%emt 0:00:50]} 34. Kb2 {[%emt 0:00:07]} Qd4+ {[%emt 0:00:24] White did not feel at home in the position after the opening.  Weighted Error Value: White=0.95/Black=0.48} 0-1

[Event "ESCC-50 2022"]
[Site "Lublin"]
[Date "2022.07.05"]
[Round "1.5"]
[White "Zielinski, Olgierd"]
[Black "Padrak, Rafal"]
[Result "0-1"]
[ECO "B12"]
[WhiteElo "1816"]
[BlackElo "2125"]
[Annotator "TA"]
[PlyCount "70"]
[EventDate "2022.07.05"]
[EventType "swiss"]
[EventCountry "POL"]
[SourceTitle "playchess.com"]
[Source "ChessBase"]
[SourceQuality "1"]
[TimeControl "40/5400+30:1800+30"]

{[%evp 12,70,26,23,26,25,22,14,14,14,16,22,20,24,161,167,194,183,272,305,382,390,506,434,699,722,670,23,30,-136,-127,-210,-10,-18,0,-5,-12,-23,0,-157,-33,-182,-179,-175,-179,-172,-162,-199,-126,-255,-271,-566,-406,-592,-586,-1095,-1014,-29984,-29985,-29973,-29971]} 1. e4 {[%emt 0:00:05] Sumets,A} c6 {[%emt 0:00:07]} 2. d4 {[%emt 0:00:23]} d5 {[%emt 0:00:08]} 3. e5 {[%emt 0:00:45]} Bf5 {[%emt 0:00:12]} 4. Nf3 {[%emt 0:00:34]} e6 {[%emt 0:00:48]} 5. Be2 {[%emt 0:00:20]} c5 {[%emt 0:01:03]} 6. c3 {[%emt 0:00:34]} Nc6 {[%emt 0:03:31]} 7. O-O {[%emt 0:00:11]} cxd4 {[%emt 0:01:58] B12: Caro-Kann: Advance Variation.} 8. Nxd4 {[%emt 0:00:40] outshines the older 8.cxd4.} Nxd4 {[%emt 0:03:58]} 9. cxd4 {[%emt 0:00:10]} Ne7 {[%emt 0:06:37] The position is equal.} 10. Nc3 {[%emt 0:03:32]} Nc6 {[%emt 0:01:07]} 11. g4 {[%emt 0:05:39]} Bg6 {[%emt 0:00:21][%cal Oh7h5]} 12. f4 {[%emt 0:00:10][%cal Bf2f4,Bf4f5,Bf5g6][%mdl 32] [#] f5 is the strong threat.} f6 $146 {[%emt 0:27:23]} (12... f5 $11) ({Predecessor:} 12... f5 13. exf6 Qxf6 14. f5 exf5 15. Be3 Bd6 16. Nxd5 Qh4 17. Bf4 Rd8 18. Bxd6 Rxd6 {½-½ (26) Karjakin,S (2772)-Mamedyarov,S (2760) Shamkir 2014 CBM 160 [Sumets,A]}) 13. f5 $18 {[%emt 0:17:43]} fxe5 {[%emt 0:00:08]} 14. fxg6 {[%emt 0:13:38]} exd4 {[%emt 0:00:21]} (14... hxg6 $142 15. Bb5 Bd6) 15. Nb5 {[%emt 0:00:43]} Qb6 {[%emt 0:05:37]} 16. Bd3 {[%emt 0:00:50]} O-O-O {[%emt 0:00:24]} 17. Bg5 {[%emt 0:09:01]} Rd7 {[%emt 0:13:51]} (17... hxg6 $142 18. Rc1 a6) 18. Rc1 {[%emt 0:10:05]} a6 {[%emt 0:04:52] [#]} 19. Na3 $2 {[%emt 0:16:11]} (19. Qe1 $1 $18 Be7 20. Bxe7 Rxe7 21. Nd6+ Kb8 22. Nf7) 19... hxg6 $1 $11 {[%emt 0:03:04]} 20. Rc2 $2 {[%emt 0:06:12]} (20. Qe1 $11 Bd6 21. b4 Bxh2+ 22. Kg2) 20... e5 $17 {[%emt 0:06:16] Threatens to win with ...e4.} 21. Rcf2 {[%emt 0:01:19]} (21. Bxg6 $17 d3+ 22. Rcf2) 21... Bd6 $2 {[%emt 0:03:52]} (21... Be7 $19 22. Bxe7 Rxe7 23. Bxg6 e4) 22. Bxg6 $11 {[%emt 0:02:53] A strong pair of Bishops.} Kb8 {[%emt 0:00:33] And now ...e4 would win.} 23. Qb3 $1 {[%emt 0:00:30]} Qxb3 {[%emt 0:06:20]} 24. axb3 {[%emt 0:00:03]} e4 {[%emt 0:00:53]} 25. Bf4 $2 {[%emt 0:00:50]} (25. Nc2 $11) 25... Ne5 {[%emt 0:00:52]} ({Black should play} 25... Bxf4 $17 26. Rxf4 d3) 26. Bxe5 {[%emt 0:01:04]} (26. Bf5 $15 Rdd8 27. Rd2) 26... Bxe5 $19 {[%emt 0:00:09]} 27. Rf8+ {[%emt 0:00:01]} Rxf8 {[%emt 0:00:09]} 28. Rxf8+ {[%emt 0:00:02]} Ka7 {[%emt 0:02:30] Hoping for ...d3.} 29. Nb1 {[%emt 0:03:45] [#]} Rc7 {[%emt 0:00:25]} (29... d3 $1 $19 {White must now prevent ...Rd6.} 30. g5 Rc7) 30. Rf1 {[%emt 0:02:02]} (30. Rf5 $17 {was worth a try.} Rc1+ 31. Kg2 Rc2+ 32. Kf1 Rc1+ 33. Kg2 Rc2+ 34. Kf1 Rc1+ 35. Kg2) 30... Rc2 {[%emt 0:01:05][%csl LRb2,LRh2]} 31. Bf7 $2 {[%emt 0:00:18]} (31. Rf5 {is a better defense.} Bxh2+ 32. Kf1) 31... d3 {[%emt 0:03:35]} 32. Bxd5 {[%emt 0:01:29]} (32. Bg6 $142) 32... e3 {[%emt 0:00:29][%cal Be4e3,Be3e2][%mdl 32]} 33. Nc3 {[%emt 0:02:11]} Bd4 {[%emt 0:01:40] ( -> ...e2+)} 34. Ra1 {[%emt 0:00:37]} e2+ {[%emt 0:00:34]} 35. Kh1 {[%emt 0:00:18]} Bxc3 {What a bad dream for White.  Weighted Error Value: White=1.27/Black=0.59} 0-1